[Event "Titled Tuesday Blitz December 20 Late 2022"]
[White "Mikhailov, Viacheslav"]
[Black "Pein, Jonathan"]
[WhiteFideId "4187369"]
[BlackFideId "417092"]
[WhiteElo "2381"]
[BlackElo "2225"]
[Result "1-0"]
[Round "05"]
[TimeControl "180+1"]
[Date "2022.12.21"]
[WhiteClock "0:01:44"]
[BlackClock "0:01:25"]

1. d4 {[%clk 0:02:59]}  Nf6 {[%clk 0:02:58]} 2. Nf3 {[%clk 0:03:00]}  b6 {[%clk 0:02:59]} 3. Bf4 {[%clk 0:03:00]}  Bb7 {[%clk 0:03:00]} 4. e3 {[%clk 0:03:00]}  e6 {[%clk 0:02:59]} 5. Bd3 {[%clk 0:03:01]}  c5 {[%clk 0:02:59]} 6. O-O {[%clk 0:03:01]}  d6 {[%clk 0:02:59]} 7. c3 {[%clk 0:03:01]}  Nbd7 {[%clk 0:02:59]} 8. Nbd2 {[%clk 0:03:01]}  Be7 {[%clk 0:02:59]} 9. a4 {[%clk 0:03:01]}  Nh5 {[%clk 0:02:59]} 10. Bg3 {[%clk 0:03:01]}  Nxg3 {[%clk 0:02:59]} 11. hxg3 {[%clk 0:03:01]}  a6 {[%clk 0:02:56]} 12. Qe2 {[%clk 0:03:01]}  O-O {[%clk 0:02:55]} 13. Rfd1 {[%clk 0:03:02]}  Qc7 {[%clk 0:02:54]} 14. Nf1 {[%clk 0:02:32]}  e5 {[%clk 0:02:53]} 15. Bf5 {[%clk 0:02:24]}  Rad8 {[%clk 0:02:49]} 16. Bxd7 {[%clk 0:02:20]}  Rxd7 {[%clk 0:02:48]} 17. dxe5 {[%clk 0:02:20]}  Bxf3 {[%clk 0:02:41]} 18. Qxf3 {[%clk 0:02:21]}  dxe5 {[%clk 0:02:41]} 19. Rxd7 {[%clk 0:02:18]}  Qxd7 {[%clk 0:02:42]} 20. Qe2 {[%clk 0:02:16]}  Qb7 {[%clk 0:02:29]} 21. Rd1 {[%clk 0:02:15]}  Rd8 {[%clk 0:02:25]} 22. Rxd8+ {[%clk 0:02:15]}  Bxd8 {[%clk 0:02:26]} 23. Nd2 {[%clk 0:02:12]}  b5 {[%clk 0:02:20]} 24. axb5 {[%clk 0:02:07]}  axb5 {[%clk 0:02:21]} 25. Qd3 {[%clk 0:02:06]}  Be7 {[%clk 0:02:16]} 26. c4 {[%clk 0:02:04]}  bxc4 {[%clk 0:02:04]} 27. Nxc4 {[%clk 0:02:05]}  g6 {[%clk 0:02:01]} 28. e4 {[%clk 0:02:00]}  Kg7 {[%clk 0:01:59]} 29. b3 {[%clk 0:01:52]}  Bf6 {[%clk 0:01:55]} 30. Nd6 {[%clk 0:01:51]}  Qe7 {[%clk 0:01:42]} 31. Qd5 {[%clk 0:01:50]}  Qd8 {[%clk 0:01:36]} 32. Qxf7+ {[%clk 0:01:46]}  Kh6 {[%clk 0:01:36]} 33. Qe6 {[%clk 0:01:44]}  Qe7 {[%clk 0:01:27]} 34. Qxe7 {[%clk 0:01:44]}  Bxe7 {[%clk 0:01:28]} 35. Nf7+ {[%clk 0:01:44]}  Kg7 {[%clk 0:01:29]} 36. Nxe5 {[%clk 0:01:45]}  Kf6 {[%clk 0:01:30]} 37. Nc4 {[%clk 0:01:45]}  g5 {[%clk 0:01:28]} 38. f4 {[%clk 0:01:45]}  Bd8 {[%clk 0:01:26]} 39. Kf2 {[%clk 0:01:45]}  Bc7 {[%clk 0:01:25]} 40. Kf3 {[%clk 0:01:46]}  h5 {[%clk 0:01:25]} 41. e5+ {[%clk 0:01:43]}  Kf5 {[%clk 0:01:25]} 42. Ne3+ {[%clk 0:01:43]}  Ke6 {[%clk 0:01:25]} 43. Ke4 {[%clk 0:01:44]}  gxf4 {[%clk 0:01:25]} 44. gxf4 {[%clk 0:01:45]}  Ba5 {[%clk 0:01:23]} 45. f5+ {[%clk 0:01:44]}  Ke7 {[%clk 0:01:23]} 46. Nd5+ {[%clk 0:01:43]}  Kf7 {[%clk 0:01:23]} 47. e6+ {[%clk 0:01:44]}  Ke8 {[%clk 0:01:23]} 48. f6 {[%clk 0:01:44]}  h4 {[%clk 0:01:24]} 49. Kf5 {[%clk 0:01:44]}  Bd2 {[%clk 0:01:24]} 50. Kg6 {[%clk 0:01:44]}  h3 {[%clk 0:01:24]} 51. f7+ {[%clk 0:01:44]}  Kf8 {[%clk 0:01:25]} 52. e7# {[%clk 0:01:44]} 1-0


[Site "https://www.chess.com"]

[Event "Titled Tuesday Blitz December 20 Late 2022"]
[White "Movahed, Sina"]
[Black "Moreno Perez, Tobias Sebastian"]
[WhiteFideId "42520835"]
[BlackFideId "186716"]
[WhiteElo "2225"]
[BlackElo "2259"]
[Result "1-0"]
[Round "05"]
[TimeControl "180+1"]
[Date "2022.12.21"]
[WhiteClock "0:02:23"]
[BlackClock "0:01:48"]

1. e4 {[%clk 0:03:00]}  c6 {[%clk 0:02:59]} 2. Nf3 {[%clk 0:03:01]}  d5 {[%clk 0:02:59]} 3. Nc3 {[%clk 0:03:01]}  dxe4 {[%clk 0:02:59]} 4. Nxe4 {[%clk 0:03:02]}  Nf6 {[%clk 0:02:59]} 5. Qe2 {[%clk 0:03:02]}  Nxe4 {[%clk 0:02:58]} 6. Qxe4 {[%clk 0:03:03]}  Nd7 {[%clk 0:02:58]} 7. Bc4 {[%clk 0:03:02]}  Nf6 {[%clk 0:02:59]} 8. Qe2 {[%clk 0:03:03]}  Bf5 {[%clk 0:02:57]} 9. d4 {[%clk 0:03:03]}  e6 {[%clk 0:02:57]} 10. c3 {[%clk 0:03:03]}  Bd6 {[%clk 0:02:57]} 11. Ne5 {[%clk 0:02:59]}  O-O {[%clk 0:02:52]} 12. g4 {[%clk 0:02:59]}  Be4 {[%clk 0:02:21]} 13. Rg1 {[%clk 0:02:58]}  c5 {[%clk 0:02:18]} 14. g5 {[%clk 0:02:55]}  cxd4 {[%clk 0:01:56]} 15. gxf6 {[%clk 0:02:49]}  Qxf6 {[%clk 0:01:56]} 16. Nd7 {[%clk 0:02:27]}  Qf5 {[%clk 0:01:48]} 17. Rg5 {[%clk 0:02:23]} 1-0


[Site "https://www.chess.com"]

[Event "Titled Tuesday Blitz December 20 Late 2022"]
[White "Nakamura, Hikaru"]
[Black "Bortnyk, Mykola"]
[WhiteFideId "2016192"]
[BlackFideId "14120836"]
[WhiteElo "2909"]
[BlackElo "2582"]
[Result "1-0"]
[Round "05"]
[TimeControl "180+1"]
[Date "2022.12.20"]
[WhiteClock "0:00:36"]
[BlackClock "0:00:16"]

1. c4 {[%clk 0:03:00]}  e5 {[%clk 0:03:00]} 2. a3 {[%clk 0:03:00]}  c6 {[%clk 0:02:58]} 3. d4 {[%clk 0:02:58]}  exd4 {[%clk 0:02:58]} 4. Qxd4 {[%clk 0:02:59]}  d5 {[%clk 0:02:58]} 5. Nf3 {[%clk 0:02:58]}  Nf6 {[%clk 0:02:59]} 6. e3 {[%clk 0:02:58]}  Be6 {[%clk 0:02:58]} 7. Nbd2 {[%clk 0:02:49]}  Bd6 {[%clk 0:02:55]} 8. b3 {[%clk 0:02:49]}  O-O {[%clk 0:02:53]} 9. Bb2 {[%clk 0:02:49]}  Nbd7 {[%clk 0:02:53]} 10. cxd5 {[%clk 0:02:49]}  cxd5 {[%clk 0:02:50]} 11. Bd3 {[%clk 0:02:45]}  Re8 {[%clk 0:02:37]} 12. O-O {[%clk 0:02:43]}  h6 {[%clk 0:02:33]} 13. Rac1 {[%clk 0:02:36]}  Qe7 {[%clk 0:02:33]} 14. Ra1 {[%clk 0:02:32]}  Bg4 {[%clk 0:02:17]} 15. h3 {[%clk 0:02:29]}  Bxf3 {[%clk 0:02:15]} 16. Nxf3 {[%clk 0:02:29]}  Ne5 {[%clk 0:02:14]} 17. Be2 {[%clk 0:02:26]}  Nxf3+ {[%clk 0:02:07]} 18. Bxf3 {[%clk 0:02:27]}  Be5 {[%clk 0:02:08]} 19. Qxe5 {[%clk 0:02:27]}  Qxe5 {[%clk 0:02:09]} 20. Bxe5 {[%clk 0:02:27]}  Rxe5 {[%clk 0:02:09]} 21. Rac1 {[%clk 0:02:27]}  Re7 {[%clk 0:02:05]} 22. Rfd1 {[%clk 0:02:26]}  Rd8 {[%clk 0:02:05]} 23. Rd4 {[%clk 0:02:25]}  Kf8 {[%clk 0:02:02]} 24. g4 {[%clk 0:02:21]}  Red7 {[%clk 0:02:01]} 25. Rcd1 {[%clk 0:02:16]}  Ke7 {[%clk 0:02:00]} 26. Kg2 {[%clk 0:02:08]}  b6 {[%clk 0:01:56]} 27. b4 {[%clk 0:02:08]}  Ke6 {[%clk 0:01:54]} 28. R1d2 {[%clk 0:02:03]}  Rc8 {[%clk 0:01:52]} 29. R4d3 {[%clk 0:02:01]}  g5 {[%clk 0:01:50]} 30. Bd1 {[%clk 0:01:49]}  Ne4 {[%clk 0:01:50]} 31. Rc2 {[%clk 0:01:46]}  Rxc2 {[%clk 0:01:44]} 32. Bxc2 {[%clk 0:01:47]}  Ke5 {[%clk 0:01:41]} 33. Bb3 {[%clk 0:01:46]}  Nf6 {[%clk 0:01:40]} 34. Kg3 {[%clk 0:01:45]}  Ne4+ {[%clk 0:01:40]} 35. Kf3 {[%clk 0:01:45]}  Nf6 {[%clk 0:01:39]} 36. Ke2 {[%clk 0:01:45]}  Rc7 {[%clk 0:01:39]} 37. f3 {[%clk 0:01:44]}  a5 {[%clk 0:01:37]} 38. Kd2 {[%clk 0:01:36]}  axb4 {[%clk 0:01:36]} 39. axb4 {[%clk 0:01:37]}  Ra7 {[%clk 0:01:37]} 40. Rc3 {[%clk 0:01:37]}  Ra1 {[%clk 0:01:32]} 41. Rc6 {[%clk 0:01:37]}  Ne8 {[%clk 0:01:20]} 42. Rxh6 {[%clk 0:01:33]}  Rb1 {[%clk 0:01:20]} 43. Ba4 {[%clk 0:01:28]}  Nc7 {[%clk 0:01:08]} 44. Rxb6 {[%clk 0:01:28]}  d4 {[%clk 0:01:03]} 45. exd4+ {[%clk 0:01:05]}  Kxd4 {[%clk 0:01:04]} 46. Rd6+ {[%clk 0:01:04]}  Ke5 {[%clk 0:01:05]} 47. Rd7 {[%clk 0:01:05]}  Ne6 {[%clk 0:00:54]} 48. Rxf7 {[%clk 0:01:03]}  Rxb4 {[%clk 0:00:49]} 49. Rf5+ {[%clk 0:00:59]}  Kd4 {[%clk 0:00:45]} 50. Bc2 {[%clk 0:01:00]}  Rb2 {[%clk 0:00:43]} 51. Kc1 {[%clk 0:00:58]}  Rb8 {[%clk 0:00:41]} 52. Be4 {[%clk 0:00:51]}  Rh8 {[%clk 0:00:41]} 53. Kd2 {[%clk 0:00:50]}  Rxh3 {[%clk 0:00:38]} 54. Rd5+ {[%clk 0:00:48]}  Kc4 {[%clk 0:00:39]} 55. Re5 {[%clk 0:00:48]}  Nd4 {[%clk 0:00:34]} 56. Bd5+ {[%clk 0:00:42]}  Kc5 {[%clk 0:00:33]} 57. Kd3 {[%clk 0:00:37]}  Rh1 {[%clk 0:00:15]} 58. Be4+ {[%clk 0:00:35]}  Kd6 {[%clk 0:00:15]} 59. Rd5+ {[%clk 0:00:35]}  Ke6 {[%clk 0:00:16]} 60. Rxd4 {[%clk 0:00:36]} 1-0


[Site "https://www.chess.com"]

[Event "Titled Tuesday Blitz December 20 Late 2022"]
[White "Novik, Maxim"]
[Black "Goryachkina, Aleksandra"]
[WhiteFideId "4102924"]
[BlackFideId "4147103"]
[WhiteElo "2291"]
[BlackElo "2484"]
[Result "0-1"]
[Round "05"]
[TimeControl "180+1"]
[Date "2022.12.21"]
[WhiteClock "0:00:11"]
[BlackClock "0:00:15"]

1. e4 {[%clk 0:03:00]}  c5 {[%clk 0:02:59]} 2. Nf3 {[%clk 0:03:00]}  e6 {[%clk 0:02:59]} 3. g3 {[%clk 0:03:00]}  Nc6 {[%clk 0:02:53]} 4. Bg2 {[%clk 0:03:00]}  Nf6 {[%clk 0:02:50]} 5. d3 {[%clk 0:02:55]}  d6 {[%clk 0:02:49]} 6. O-O {[%clk 0:02:54]}  Be7 {[%clk 0:02:48]} 7. c3 {[%clk 0:02:51]}  O-O {[%clk 0:02:48]} 8. Re1 {[%clk 0:02:51]}  Bd7 {[%clk 0:02:32]} 9. d4 {[%clk 0:02:49]}  cxd4 {[%clk 0:02:32]} 10. cxd4 {[%clk 0:02:49]}  d5 {[%clk 0:02:31]} 11. e5 {[%clk 0:02:49]}  Ne4 {[%clk 0:02:31]} 12. Be3 {[%clk 0:02:43]}  Rc8 {[%clk 0:02:30]} 13. Re2 {[%clk 0:02:40]}  Nb4 {[%clk 0:02:17]} 14. Ne1 {[%clk 0:02:40]}  Bb5 {[%clk 0:02:16]} 15. Bxe4 {[%clk 0:02:31]}  dxe4 {[%clk 0:02:02]} 16. Rd2 {[%clk 0:02:30]}  Nd5 {[%clk 0:02:02]} 17. Nc3 {[%clk 0:02:20]}  Nxc3 {[%clk 0:01:38]} 18. bxc3 {[%clk 0:02:20]}  Rxc3 {[%clk 0:01:38]} 19. d5 {[%clk 0:02:18]}  exd5 {[%clk 0:01:38]} 20. Rxd5 {[%clk 0:02:18]}  Qe8 {[%clk 0:01:37]} 21. Bxa7 {[%clk 0:01:53]}  Bc6 {[%clk 0:01:36]} 22. Rd2 {[%clk 0:01:51]}  Bg5 {[%clk 0:01:18]} 23. Rb2 {[%clk 0:01:42]}  e3 {[%clk 0:01:17]} 24. f4 {[%clk 0:01:35]}  Be7 {[%clk 0:01:04]} 25. Bd4 {[%clk 0:01:21]}  Rc4 {[%clk 0:00:55]} 26. Bxe3 {[%clk 0:01:19]}  Qc8 {[%clk 0:00:49]} 27. Rc1 {[%clk 0:01:07]}  Rxc1 {[%clk 0:00:47]} 28. Qxc1 {[%clk 0:01:07]}  Ba3 {[%clk 0:00:46]} 29. Nd3 {[%clk 0:00:56]}  Rd8 {[%clk 0:00:45]} 30. Qc2 {[%clk 0:00:40]}  Rxd3 {[%clk 0:00:34]} 31. Qxd3 {[%clk 0:00:37]}  Bxb2 {[%clk 0:00:34]} 32. Qb3 {[%clk 0:00:31]}  Qd7 {[%clk 0:00:34]} 33. Qxb2 {[%clk 0:00:28]}  Qd1+ {[%clk 0:00:34]} 34. Kf2 {[%clk 0:00:27]}  Qf3+ {[%clk 0:00:34]} 35. Ke1 {[%clk 0:00:27]}  Qxe3+ {[%clk 0:00:34]} 36. Qe2 {[%clk 0:00:26]}  Qg1+ {[%clk 0:00:26]} 37. Kd2 {[%clk 0:00:26]}  g6 {[%clk 0:00:24]} 38. Kc3 {[%clk 0:00:21]}  Qc5+ {[%clk 0:00:21]} 39. Qc4 {[%clk 0:00:17]}  Qa3+ {[%clk 0:00:20]} 40. Qb3 {[%clk 0:00:15]}  Qc1+ {[%clk 0:00:19]} 41. Qc2 {[%clk 0:00:15]}  Qe1+ {[%clk 0:00:16]} 42. Qd2 {[%clk 0:00:13]}  Qxd2+ {[%clk 0:00:16]} 43. Kxd2 {[%clk 0:00:13]}  Kf8 {[%clk 0:00:17]} 44. Ke3 {[%clk 0:00:13]}  Ke7 {[%clk 0:00:17]} 45. g4 {[%clk 0:00:14]}  Ke6 {[%clk 0:00:16]} 46. h4 {[%clk 0:00:11]}  h5 {[%clk 0:00:15]} 47. f5+ {[%clk 0:00:11]}  Kxe5 {[%clk 0:00:15]} 0-1


[Site "https://www.chess.com"]

[Event "Titled Tuesday Blitz December 20 Late 2022"]
[White "Olsen, Filip Boe"]
[Black "Eljanov, Pavel"]
[WhiteFideId "1440640"]
[BlackFideId "14102951"]
[WhiteElo "2333"]
[BlackElo "2598"]
[Result "1/2-1/2"]
[Round "05"]
[TimeControl "180+1"]
[Date "2022.12.20"]
[WhiteClock "0:00:16"]
[BlackClock "0:00:08"]

1. d4 {[%clk 0:03:00]}  Nf6 {[%clk 0:02:58]} 2. c4 {[%clk 0:03:01]}  e6 {[%clk 0:02:59]} 3. Nf3 {[%clk 0:03:01]}  b6 {[%clk 0:02:58]} 4. g3 {[%clk 0:02:58]}  Bb7 {[%clk 0:02:58]} 5. Bg2 {[%clk 0:02:58]}  Bb4+ {[%clk 0:02:58]} 6. Bd2 {[%clk 0:02:55]}  Be7 {[%clk 0:02:58]} 7. O-O {[%clk 0:02:55]}  O-O {[%clk 0:02:56]} 8. Nc3 {[%clk 0:02:54]}  c6 {[%clk 0:02:56]} 9. e4 {[%clk 0:02:53]}  d5 {[%clk 0:02:56]} 10. cxd5 {[%clk 0:02:52]}  cxd5 {[%clk 0:02:57]} 11. e5 {[%clk 0:02:52]}  Ne4 {[%clk 0:02:57]} 12. Rc1 {[%clk 0:02:45]}  Ba6 {[%clk 0:02:46]} 13. Re1 {[%clk 0:02:44]}  Nxd2 {[%clk 0:02:46]} 14. Qxd2 {[%clk 0:02:43]}  Qd7 {[%clk 0:02:46]} 15. h4 {[%clk 0:02:42]}  Nc6 {[%clk 0:02:45]} 16. Bf1 {[%clk 0:02:29]}  Bxf1 {[%clk 0:02:44]} 17. Kxf1 {[%clk 0:02:30]}  Rac8 {[%clk 0:02:45]} 18. Kg2 {[%clk 0:02:23]}  Na5 {[%clk 0:02:34]} 19. Qd3 {[%clk 0:02:09]}  Nc4 {[%clk 0:02:23]} 20. b3 {[%clk 0:02:08]}  Na5 {[%clk 0:02:23]} 21. Ng5 {[%clk 0:02:08]}  g6 {[%clk 0:02:18]} 22. Nf3 {[%clk 0:01:56]}  h6 {[%clk 0:01:55]} 23. Ne2 {[%clk 0:01:39]}  Rxc1 {[%clk 0:01:55]} 24. Rxc1 {[%clk 0:01:40]}  Rc8 {[%clk 0:01:54]} 25. Rc2 {[%clk 0:01:22]}  Rxc2 {[%clk 0:01:45]} 26. Qxc2 {[%clk 0:01:23]}  Qc6 {[%clk 0:01:40]} 27. Qxc6 {[%clk 0:01:21]}  Nxc6 {[%clk 0:01:41]} 28. Kf1 {[%clk 0:01:22]}  Nb4 {[%clk 0:01:36]} 29. Nc3 {[%clk 0:01:17]}  a6 {[%clk 0:01:24]} 30. Ke2 {[%clk 0:01:15]}  b5 {[%clk 0:01:24]} 31. Ne1 {[%clk 0:01:15]}  Nc6 {[%clk 0:01:21]} 32. Ke3 {[%clk 0:01:13]}  Bb4 {[%clk 0:01:21]} 33. Kd3 {[%clk 0:01:07]}  Kg7 {[%clk 0:01:16]} 34. Nc2 {[%clk 0:01:07]}  Be7 {[%clk 0:01:16]} 35. a4 {[%clk 0:01:01]}  b4 {[%clk 0:01:05]} 36. Nd1 {[%clk 0:00:52]}  Na5 {[%clk 0:01:00]} 37. Na1 {[%clk 0:00:50]}  f6 {[%clk 0:01:01]} 38. exf6+ {[%clk 0:00:34]}  Kxf6 {[%clk 0:00:57]} 39. Ne3 {[%clk 0:00:35]}  Bf8 {[%clk 0:00:48]} 40. Ng4+ {[%clk 0:00:34]}  Kf5 {[%clk 0:00:46]} 41. Ne5 {[%clk 0:00:33]}  h5 {[%clk 0:00:44]} 42. Nd7 {[%clk 0:00:30]}  Bd6 {[%clk 0:00:42]} 43. Nc5 {[%clk 0:00:21]}  Bxc5 {[%clk 0:00:41]} 44. dxc5 {[%clk 0:00:22]}  e5 {[%clk 0:00:38]} 45. Nc2 {[%clk 0:00:22]}  Nxb3 {[%clk 0:00:32]} 46. c6 {[%clk 0:00:20]}  Nc5+ {[%clk 0:00:32]} 47. Kd2 {[%clk 0:00:19]}  Nxa4 {[%clk 0:00:31]} 48. Nxb4 {[%clk 0:00:19]}  Nb6 {[%clk 0:00:28]} 49. c7 {[%clk 0:00:19]}  Ke6 {[%clk 0:00:26]} 50. Nxa6 {[%clk 0:00:19]}  Kd7 {[%clk 0:00:22]} 51. f4 {[%clk 0:00:19]}  e4 {[%clk 0:00:21]} 52. Kc3 {[%clk 0:00:19]}  Kc8 {[%clk 0:00:21]} 53. Kd4 {[%clk 0:00:19]}  Kb7 {[%clk 0:00:21]} 54. Nc5+ {[%clk 0:00:18]}  Kxc7 {[%clk 0:00:22]} 55. Nxe4 {[%clk 0:00:19]}  dxe4 {[%clk 0:00:21]} 56. Kxe4 {[%clk 0:00:20]}  Nc4 {[%clk 0:00:20]} 57. Kd5 {[%clk 0:00:17]}  Ne3+ {[%clk 0:00:18]} 58. Ke6 {[%clk 0:00:18]}  Nf5 {[%clk 0:00:18]} 59. Kf6 {[%clk 0:00:17]}  Nxg3 {[%clk 0:00:18]} 60. Kxg6 {[%clk 0:00:17]}  Kd7 {[%clk 0:00:18]} 61. f5 {[%clk 0:00:17]}  Ke7 {[%clk 0:00:19]} 62. Kg5 {[%clk 0:00:14]}  Kf7 {[%clk 0:00:11]} 63. Kf4 {[%clk 0:00:14]}  Ne2+ {[%clk 0:00:10]} 64. Kg5 {[%clk 0:00:14]}  Ng3 {[%clk 0:00:10]} 65. Kf4 {[%clk 0:00:15]}  Nh1 {[%clk 0:00:10]} 66. Kg5 {[%clk 0:00:15]}  Nf2 {[%clk 0:00:10]} 67. Kxh5 {[%clk 0:00:15]}  Kf6 {[%clk 0:00:10]} 68. Kh6 {[%clk 0:00:14]}  Ng4+ {[%clk 0:00:10]} 69. Kh7 {[%clk 0:00:14]}  Kf7 {[%clk 0:00:10]} 70. f6 {[%clk 0:00:14]}  Nxf6+ {[%clk 0:00:09]} 71. Kh6 {[%clk 0:00:14]}  Ne4 {[%clk 0:00:09]} 72. Kh5 {[%clk 0:00:14]}  Nf6+ {[%clk 0:00:07]} 73. Kg5 {[%clk 0:00:14]}  Kg7 {[%clk 0:00:08]} 74. Kf4 {[%clk 0:00:15]}  Kg6 {[%clk 0:00:08]} 75. h5+ {[%clk 0:00:16]}  Nxh5+ {[%clk 0:00:08]} 1/2-1/2


[Site "https://www.chess.com"]

[Event "Titled Tuesday Blitz December 20 Late 2022"]
[White "Pappelis, Dimitrios"]
[Black "Yeritsyan, Hayk"]
[WhiteFideId "4215281"]
[BlackFideId "13307320"]
[WhiteElo "2104"]
[BlackElo "2403"]
[Result "0-1"]
[Round "05"]
[TimeControl "180+1"]
[Date "2022.12.21"]
[WhiteClock "0:00:03"]
[BlackClock "0:01:23"]

1. e4 {[%clk 0:03:00]}  c6 {[%clk 0:02:54]} 2. d3 {[%clk 0:02:54]}  d5 {[%clk 0:02:54]} 3. Nf3 {[%clk 0:02:54]}  Bg4 {[%clk 0:02:52]} 4. Be2 {[%clk 0:02:48]}  dxe4 {[%clk 0:02:48]} 5. dxe4 {[%clk 0:02:48]}  Qxd1+ {[%clk 0:02:49]} 6. Bxd1 {[%clk 0:02:43]}  Bxf3 {[%clk 0:02:48]} 7. Bxf3 {[%clk 0:02:41]}  Nd7 {[%clk 0:02:49]} 8. Nc3 {[%clk 0:02:37]}  e5 {[%clk 0:02:46]} 9. O-O {[%clk 0:02:35]}  Bc5 {[%clk 0:02:45]} 10. a3 {[%clk 0:02:29]}  Ne7 {[%clk 0:02:44]} 11. Bg4 {[%clk 0:02:25]}  O-O-O {[%clk 0:02:42]} 12. Be3 {[%clk 0:02:15]}  Bxe3 {[%clk 0:02:41]} 13. fxe3 {[%clk 0:02:16]}  f6 {[%clk 0:02:39]} 14. Rad1 {[%clk 0:02:14]}  Kc7 {[%clk 0:02:39]} 15. Rf2 {[%clk 0:02:06]}  Nb6 {[%clk 0:02:39]} 16. b3 {[%clk 0:02:03]}  Rxd1+ {[%clk 0:02:38]} 17. Nxd1 {[%clk 0:02:02]}  Rd8 {[%clk 0:02:39]} 18. Kf1 {[%clk 0:01:58]}  Nd7 {[%clk 0:02:29]} 19. Bxd7 {[%clk 0:01:51]}  Rxd7 {[%clk 0:02:29]} 20. Ke1 {[%clk 0:01:49]}  Rd6 {[%clk 0:02:29]} 21. Rd2 {[%clk 0:01:48]}  Rxd2 {[%clk 0:02:28]} 22. Kxd2 {[%clk 0:01:49]}  Kd6 {[%clk 0:02:29]} 23. c4 {[%clk 0:01:44]}  a5 {[%clk 0:02:27]} 24. Kc3 {[%clk 0:01:43]}  Ng6 {[%clk 0:02:24]} 25. g3 {[%clk 0:01:38]}  Nf8 {[%clk 0:02:23]} 26. b4 {[%clk 0:01:36]}  axb4+ {[%clk 0:02:24]} 27. axb4 {[%clk 0:01:37]}  Ne6 {[%clk 0:02:24]} 28. h4 {[%clk 0:01:36]}  c5 {[%clk 0:02:18]} 29. b5 {[%clk 0:01:33]}  Nd8 {[%clk 0:02:10]} 30. Nf2 {[%clk 0:01:28]}  Nf7 {[%clk 0:02:09]} 31. Kd3 {[%clk 0:01:21]}  Kc7 {[%clk 0:02:08]} 32. Kc3 {[%clk 0:01:14]}  Nd6 {[%clk 0:02:07]} 33. Kd3 {[%clk 0:00:51]}  Kb6 {[%clk 0:02:06]} 34. h5 {[%clk 0:00:49]}  h6 {[%clk 0:01:57]} 35. Kc3 {[%clk 0:00:30]}  Ka5 {[%clk 0:01:53]} 36. Kb3 {[%clk 0:00:30]}  Kb6 {[%clk 0:01:36]} 37. g4 {[%clk 0:00:29]}  Ka5 {[%clk 0:01:36]} 38. Kc3 {[%clk 0:00:15]}  Ka4 {[%clk 0:01:36]} 39. Kd3 {[%clk 0:00:16]}  Kb4 {[%clk 0:01:36]} 40. g5 {[%clk 0:00:09]}  hxg5 {[%clk 0:01:31]} 41. Ng4 {[%clk 0:00:09]}  Nxc4 {[%clk 0:01:30]} 42. h6 {[%clk 0:00:02]}  gxh6 {[%clk 0:01:29]} 43. Nxh6 {[%clk 0:00:02]}  Nd6 {[%clk 0:01:23]} 44. Ng4 {[%clk 0:00:03]}  Ne8 {[%clk 0:01:23]} 45. Kd2 {[%clk 0:00:01]}  Kxb5 {[%clk 0:01:23]} 46. Kc3 {[%clk 0:00:02]}  Kc6 {[%clk 0:01:23]} 47. Kc4 {[%clk 0:00:02]}  b5+ {[%clk 0:01:23]} 48. Kc3 {[%clk 0:00:03]} 0-1


[Site "https://www.chess.com"]

[Event "Titled Tuesday Blitz December 20 Late 2022"]
[White "Perske, Thore"]
[Black "Myers, Dominique"]
[WhiteFideId "12902195"]
[BlackFideId "2041715"]
[WhiteElo "2336"]
[BlackElo "1953"]
[Result "0-1"]
[Round "05"]
[TimeControl "180+1"]
[Date "2022.12.21"]
[WhiteClock "0:00:33"]
[BlackClock "0:01:07"]

1. e4 {[%clk 0:03:00]}  e5 {[%clk 0:02:59]} 2. Nf3 {[%clk 0:03:00]}  Nc6 {[%clk 0:02:59]} 3. Bb5 {[%clk 0:02:58]}  a6 {[%clk 0:02:55]} 4. Ba4 {[%clk 0:02:56]}  Nf6 {[%clk 0:02:54]} 5. O-O {[%clk 0:02:55]}  Be7 {[%clk 0:02:54]} 6. Bxc6 {[%clk 0:02:55]}  dxc6 {[%clk 0:02:55]} 7. d3 {[%clk 0:02:55]}  Nd7 {[%clk 0:02:51]} 8. Nc3 {[%clk 0:02:55]}  c5 {[%clk 0:02:51]} 9. a4 {[%clk 0:02:54]}  Bd6 {[%clk 0:02:51]} 10. Nd2 {[%clk 0:02:45]}  Nb8 {[%clk 0:02:49]} 11. Nc4 {[%clk 0:02:43]}  Nc6 {[%clk 0:02:49]} 12. f4 {[%clk 0:02:36]}  exf4 {[%clk 0:02:46]} 13. Bxf4 {[%clk 0:02:36]}  Bxf4 {[%clk 0:02:46]} 14. Rxf4 {[%clk 0:02:37]}  O-O {[%clk 0:02:47]} 15. Qh5 {[%clk 0:02:36]}  b6 {[%clk 0:02:38]} 16. Raf1 {[%clk 0:02:33]}  Be6 {[%clk 0:02:35]} 17. Nd5 {[%clk 0:02:18]}  Bxd5 {[%clk 0:01:46]} 18. exd5 {[%clk 0:02:18]}  Nd4 {[%clk 0:01:46]} 19. Rxf7 {[%clk 0:02:15]}  Rxf7 {[%clk 0:01:40]} 20. Qxf7+ {[%clk 0:02:13]}  Kh8 {[%clk 0:01:40]} 21. c3 {[%clk 0:02:11]}  Ne2+ {[%clk 0:01:35]} 22. Kh1 {[%clk 0:02:10]}  h6 {[%clk 0:01:32]} 23. Qe6 {[%clk 0:01:50]}  Qe8 {[%clk 0:01:31]} 24. Qxe8+ {[%clk 0:01:15]}  Rxe8 {[%clk 0:01:32]} 25. g3 {[%clk 0:01:15]}  b5 {[%clk 0:01:25]} 26. axb5 {[%clk 0:01:15]}  axb5 {[%clk 0:01:26]} 27. Na3 {[%clk 0:01:14]}  b4 {[%clk 0:01:26]} 28. cxb4 {[%clk 0:01:12]}  cxb4 {[%clk 0:01:27]} 29. Nc4 {[%clk 0:01:10]}  Rd8 {[%clk 0:01:24]} 30. Ne3 {[%clk 0:01:00]}  Re8 {[%clk 0:01:23]} 31. Nc2 {[%clk 0:00:53]}  b3 {[%clk 0:01:21]} 32. Nb4 {[%clk 0:00:53]}  Rb8 {[%clk 0:01:17]} 33. Nc6 {[%clk 0:00:53]}  Rb5 {[%clk 0:01:16]} 34. Ne7 {[%clk 0:00:48]}  Rc5 {[%clk 0:01:16]} 35. Rf8+ {[%clk 0:00:44]}  Kh7 {[%clk 0:01:14]} 36. Rb8 {[%clk 0:00:43]}  Nd4 {[%clk 0:01:12]} 37. Nc6 {[%clk 0:00:39]}  Nf3 {[%clk 0:01:08]} 38. Rxb3 {[%clk 0:00:33]}  Rc2 {[%clk 0:01:07]} 0-1


[Site "https://www.chess.com"]